bitfinex/quotes_ETHUSD_20250314
["timestamp","ask_amount","ask_price","bid_price","bid_amount"]
[1741983125217,0.37837,1932.7,1932.4,10.17391]
[1741983126620,0.37837,1932.7,1932.4,10.65865534]
[1741983128914,0.08271429,1932.6,1932.4,10.65865534]
[1741983129310,8.95759,1932.8,1932.4,10.65865534]
[1741983129504,0.08252686,1932.5,1932.4,10.65865534]
[1741983129705,8.95759,1932.8,1932.4,10.65865534]
[1741983129904,0.08252686,1932.5,1932.4,10.65865534]
[1741983130114,8.95759,1932.8,1932.4,10.65865534]
[1741983130324,0.08257356,1932.5,1932.4,10.65865534]
[1741983130527,4.06955478,1932.7,1932.4,7.10571059]
[1741983130725,3.7837,1932.8,1932.4,5.48374534]
[1741983130726,0.7837,1932.8,1932.4,5.48374534]
[1741983131024,0.7837,1932.8,1932.5,5.1745]
[1741983131527,0.7837,1932.8,1932.5,5.17452]
[1741983131764,0.7837,1932.8,1932.5,5.1745]
[1741983131901,3.81,1933.0,1932.6,5.22602208]
[1741983132103,5.98339,1933.0,1932.6,5.17428]
[1741983133143,11.15684,1933.0,1932.6,5.17428]
[1741983133430,5.98339,1933.0,1932.6,5.17428]
[1741983133724,4.06955478,1932.9,1932.5,5.17464]
[1741983133905,9.24325478,1932.9,1932.5,10.3491]
[1741983134106,4.06955478,1932.9,1932.6,5.17435]
[1741983135716,4.06955478,1932.9,1932.6,10.34854]
[1741983135906,4.06955478,1932.9,1932.6,5.17419]
[1741983137341,9.24312478,1932.9,1932.5,10.3491]
[1741983137706,4.06955478,1932.9,1932.6,5.17436]
[1741983138008,9.24312478,1932.9,1932.5,5.17457]
[1741983138307,9.24312478,1932.9,1932.5,10.34909]
[1741983138504,9.24312478,1932.9,1932.6,0.4850606]
[1741983139306,5.9686,1932.7,1932.6,0.4850606]
[1741983139702,10.03815478,1932.7,1932.6,0.4850606]
[1741983140238,0.8234,1932.5,1932.1,5.18736454]
[1741983140448,5.17491,1932.4,1932.1,5.18736454]
[1741983140612,5.17518,1932.3,1932.1,0.01165454]
[1741983141312,5.99194,1932.2,1932.1,0.01165454]
[1741983141936,7.108652,1932.2,1932.1,0.01165454]
[1741983143748,1.933212,1932.2,1932.1,0.01165454]
[1741983144049,0.89815069,1932.2,1932.1,0.01165454]
[1741983144217,6.07359069,1932.2,1932.1,0.01165454]
[1741983144421,0.89815069,1932.2,1932.1,0.01165454]
[1741983144647,3.89815069,1932.2,1932.1,0.01165454]
[1741983144862,9.02899069,1932.2,1932.1,0.01165454]
[1741983145059,11.35606324,1932.2,1932.1,0.01165454]
[1741983146133,17.45606324,1932.2,1932.1,0.01165454]
[1741983147927,11.35606324,1932.2,1932.1,0.01165454]
[1741983148134,0.08165069,1932.2,1932.1,0.01165454]
[1741983148537,4.06955478,1932.6,1932.1,0.01165454]
[1741983148754,5.17479,1932.5,1932.1,0.01165454]
[1741983148935,9.24451478,1932.4,1932.1,0.01165454]
[1741983149655,5.17525,1932.3,1932.1,0.01165454]
[1741983149953,9.24451478,1932.4,1932.1,0.01165454]
[1741983150165,5.95056,1932.3,1932.1,0.01165454]
[1741983150521,5.17544,1932.2,1932.1,0.01165454]
[1741983150731,5.95056,1932.3,1932.1,0.01165454]
[1741983151059,11.12595,1932.3,1932.1,0.01165454]
[1741983151255,9.24499478,1932.2,1932.1,0.01165454]
[1741983151469,10.76455026,1932.2,1932.1,0.01165454]
[1741983152960,5.58911026,1932.2,1932.1,0.01165454]
[1741983153138,10.76455026,1932.2,1932.1,0.01165454]
[1741983153339,0.7752,1932.3,1932.1,0.01165454]
[1741983153853,0.7752,1932.3,1932.1,5.18725454]
[1741983154049,0.7752,1932.3,1932.1,0.01165454]
[1741983154288,0.07472417,1932.2,1932.1,0.01165454]
[1741983155329,4.14427895,1932.2,1932.1,0.01165454]
[1741983155942,9.31971895,1932.2,1932.1,0.01165454]
[1741983156339,10.84674185,1932.2,1932.1,0.01165454]
[1741983157159,11.62694185,1932.2,1932.1,0.01165454]
[1741983157457,14.62694185,1932.2,1932.1,0.01165454]
[1741983160670,20.72694185,1932.2,1932.1,0.01165454]
[1741983164466,21.41910671,1932.2,1932.1,0.01165454]
[1741983164646,25.48866149,1932.2,1932.1,0.01165454]
[1741983165065,26.16228522,1932.2,1932.1,0.01165454]
[1741983165364,0.7929,1931.6,1931.1,0.8124]
[1741983165530,9.24779478,1931.2,1930.9,0.8124]
[1741983165744,14.42615478,1931.2,1930.8,5.99158]
[1741983165968,0.07223476,1931.1,1930.8,5.99158]
[1741983166264,4.86245478,1931.0,1930.5,5.17985]
[1741983166432,4.06955478,1930.8,1930.6,5.17972]
[1741983166634,7.06955478,1931.0,1930.7,5.17946]
[1741983167365,4.86245478,1931.4,1930.7,0.8124]
[1741983167566,3.0,1931.3,1931.0,5.99084]
[1741983168165,8.17786,1931.3,1931.0,0.8124]
[1741983168332,4.06955478,1931.2,1931.0,0.8124]
[1741983168742,10.47246626,1931.2,1930.8,5.99143]
[1741983169063,10.47246626,1931.2,1930.8,0.8124]
[1741983169441,5.29429626,1931.2,1930.8,11.1704]
[1741983169632,4.06955478,1931.2,1930.9,5.17889]
[1741983169859,7.06955478,1931.3,1931.0,5.17852]
[1741983170067,7.06955478,1931.3,1930.9,5.17885]
[1741983170237,5.17823,1931.2,1930.8,5.99139]
[1741983170434,7.06955478,1931.3,1930.8,11.17047]
[1741983170639,8.29427026,1931.3,1930.9,10.35741]
[1741983171068,8.29427026,1931.3,1931.0,5.17864]
[1741983171434,6.1,1931.4,1931.0,0.7913]
[1741983171633,6.1,1931.4,1931.1,5.1782]
[1741983171951,14.27718,1931.6,1931.2,5.17802]
[1741983172345,9.1,1931.6,1931.3,5.96899]
[1741983172555,9.1,1931.6,1931.3,0.7913]
[1741983172765,14.27709,1931.6,1931.3,0.7913]
[1741983173576,16.70489348,1931.6,1931.1,10.96861]
[1741983173770,16.70489348,1931.6,1931.2,5.17809]
[1741983173971,0.0703446,1931.5,1931.2,5.17809]
[1741983174669,0.0703446,1931.5,1931.4,5.17759]
[1741983174981,0.0703446,1931.5,1931.2,10.3559]
[1741983175180,0.0703446,1931.5,1931.2,6.79256]
[1741983175769,5.17781,1931.4,1931.0,5.17849]
[1741983175952,4.13989938,1931.5,1931.0,5.92889]
[1741983176286,0.07033221,1931.4,1931.1,5.1783]
[1741983178588,0.07033221,1931.4,1931.0,0.7504]
[1741983178765,0.07033221,1931.4,1931.3,5.17785]
[1741983179184,6.1,1931.6,1931.3,5.9281]
[1741983179387,0.06489976,1931.4,1931.3,5.9281]
[1741983179690,0.06489976,1931.4,1931.3,11.10583]
[1741983179875,4.06955478,1931.7,1931.4,5.17754]
[1741983180187,0.06531446,1931.6,1931.3,5.9281]
[1741983180353,0.06531446,1931.6,1931.3,5.92823]
[1741983180556,4.06955478,1931.7,1931.4,5.17737]
[1741983180759,0.06511257,1931.5,1931.4,5.17737]
[1741983180959,10.35325,1931.8,1931.4,5.17737]
[1741983181164,0.06515929,1931.5,1931.4,5.17737]
[1741983181399,5.17654,1931.8,1931.5,5.17725]
[1741983181601,13.02512478,1931.9,1931.4,5.17737]
[1741983181602,4.06955478,1931.9,1931.4,5.17737]
[1741983181894,5.17672,1931.8,1931.4,5.17737]
[1741983182275,10.35346,1931.8,1931.4,5.17737]
[1741983182992,5.17672,1931.8,1931.4,5.17737]
[1741983183394,5.17672,1931.8,1931.4,10.35479]
[1741983183694,5.17672,1931.8,1931.4,5.17737]
[1741983184088,9.24583478,1931.9,1931.3,0.7504]
[1741983184398,10.35334,1931.8,1931.4,5.17752]
[1741983184594,5.17663,1931.8,1931.4,5.17752]
[1741983184989,5.17663,1931.8,1931.3,11.10583]
[1741983185304,5.17679,1931.7,1931.3,5.92811]
[1741983185500,11.17757,1931.8,1931.3,11.10573]
[1741983186276,5.17679,1931.7,1931.3,12.216303]
[1741983186574,5.17679,1931.7,1931.4,5.17758]
[1741983188895,0.06232061,1931.6,1931.3,7.038593]
[1741983189102,5.17679,1931.7,1931.3,12.59670634]
[1741983189398,0.06275387,1931.6,1931.3,7.41900634]
[1741983189800,10.35376,1931.7,1931.3,7.41900634]
[1741983189969,0.06038773,1931.5,1931.3,7.41900634]
[1741983190166,10.35376,1931.7,1931.3,7.41900634]
[1741983190372,10.35376,1931.7,1931.3,7.41923634]
[1741983190373,0.06016067,1931.4,1931.3,7.41923634]
[1741983190698,0.05983363,1931.4,1931.3,7.41902634]
[1741983190901,5.17679,1931.7,1931.3,7.41902634]
[1741983191098,0.06058996,1931.6,1931.3,7.41902634]
[1741983191300,5.17679,1931.7,1931.3,7.41902634]
[1741983191496,4.13019145,1931.6,1931.3,0.48493173]
[1741983191718,9.24714478,1931.4,1931.3,0.48493173]
[1741983191909,13.13127915,1931.4,1931.3,0.48493173]
[1741983195810,5.17836,1931.2,1930.9,0.48493173]
[1741983195998,5.17842,1931.1,1930.9,0.48493173]
[1741983196195,5.23758915,1931.1,1930.9,0.48493173]
[1741983197287,5.23758915,1931.1,1930.8,1.22492418]
[1741983198213,5.23758915,1931.1,1930.8,6.40409418]
[1741983198605,5.17876,1931.0,1930.8,0.8303]
[1741983198813,5.17929,1930.8,1930.5,1.20830706]
[1741983198976,5.17929,1930.8,1930.5,5.8255]
[1741983199177,5.23788806,1930.7,1930.5,0.8275]
[1741983199390,5.17986,1930.6,1930.3,0.8275]
[1741983199789,0.05771925,1930.5,1930.3,6.008]
[1741983200081,0.05771925,1930.5,1930.3,0.8275]
[1741983200684,5.23780925,1930.5,1930.2,17.125]
[1741983200881,0.05771925,1930.5,1930.3,6.00474]
[1741983201177,10.35927,1930.7,1930.3,6.00474]
[1741983201383,0.05734745,1930.4,1930.3,6.00474]
[1741983201611,3.0,1931.0,1930.7,0.8243]
[1741983201808,9.24806478,1931.1,1930.7,6.00366]
[1741983202015,0.0558425,1930.9,1930.7,6.00366]
[1741983202314,0.05565472,1930.8,1930.7,0.8243]
[1741983202514,5.17851,1931.1,1930.7,0.8243]
[1741983202817,0.05610266,1931.0,1930.7,6.00363]
[1741983203614,5.23483266,1931.0,1930.7,0.8243]
[1741983203809,5.23483266,1931.0,1930.7,6.00373]
[1741983205016,0.05610266,1931.0,1930.7,6.00373]
[1741983206402,0.05610266,1931.0,1930.8,5.17908]
[1741983206718,8.17815,1931.2,1930.8,5.17908]
[1741983207016,0.0559873,1930.9,1930.8,5.17908]
[1741983207219,9.92070648,1931.2,1930.8,5.17908]
[1741983207418,0.0559873,1930.9,1930.8,5.17908]
[1741983207633,5.9438,1930.5,1930.4,5.65e-06]
[1741983207798,1.51611486,1930.8,1930.4,5.18027565]
[1741983208003,0.05489209,1930.5,1930.4,5.95787565]
[1741983208222,2.50635648,1931.2,1930.5,5.95747]
[1741983208223,5.1788,1931.0,1930.5,5.95747]
[1741983208544,0.0555721,1930.9,1930.5,0.7776]
[1741983208822,0.0555721,1930.9,1930.6,5.17963]
[1741983208997,5.17857,1931.1,1930.6,5.17959]
[1741983209200,0.0553843,1930.8,1930.6,5.17959]
[1741983209400,5.17869,1931.0,1930.6,5.17959]
[1741983209625,0.05369099,1930.7,1930.6,5.17959]
[1741983209923,0.05402422,1930.7,1930.6,5.17956]
[1741983210215,5.17869,1931.0,1930.6,5.17956]
[1741983210435,0.05402422,1930.7,1930.6,5.17956]
[1741983210584,5.17869,1931.0,1930.6,6.801276]
[1741983210792,0.0539948,1930.7,1930.6,5.17956]
[1741983211033,3.0,1931.3,1931.0,5.17855]
[1741983211196,8.17792,1931.3,1930.9,5.95652]
[1741983211795,13.35601,1931.3,1930.9,5.95652]
[1741983211995,8.17792,1931.3,1930.9,0.7776]
[1741983212225,5.17818,1931.2,1930.9,0.7776]
[1741983212436,9.24773478,1931.2,1930.9,5.8516]
[1741983212930,4.06955478,1931.2,1930.9,5.8516]
[1741983213225,4.06955478,1931.2,1930.9,11.03049]
[1741983213727,4.06955478,1931.4,1931.0,10.35691]
[1741983214020,9.24714478,1931.4,1931.0,5.17844]
[1741983214807,9.24714478,1931.4,1930.9,12.651477]
[1741983214808,5.17796,1931.3,1930.9,12.651477]
[1741983215092,9.24714478,1931.4,1931.0,5.17854]
[1741983216827,4.06955478,1931.4,1930.9,7.472557]
[1741983217008,4.06955478,1931.6,1931.4,5.17757]
[1741983217208,4.06955478,1931.6,1931.3,0.8263]
[1741983217524,9.24662478,1931.6,1931.3,0.8263]
[1741983217726,14.42392478,1931.6,1931.3,0.8263]
[1741983217898,9.24662478,1931.6,1931.3,0.8263]
[1741983218105,9.24662478,1931.6,1931.2,5.1781]
[1741983218929,0.05362862,1931.5,1931.2,5.1781]
[1741983220037,0.05362862,1931.5,1931.2,10.35604]
[1741983220243,0.05362862,1931.5,1931.3,5.17766]
[1741983222743,0.05362862,1931.5,1931.4,0.87267227]
[1741983222944,0.05362862,1931.5,1931.4,5.99849]
[1741983223123,5.17696,1931.7,1931.4,0.8209]
[1741983223318,0.05238663,1931.6,1931.4,5.9984]
[1741983223642,5.17696,1931.7,1931.4,5.9984]
[1741983223945,5.17693,1931.7,1931.4,0.8209]
[1741983224130,14.47629141,1931.6,1931.3,5.049]
[1741983224437,4.06955478,1931.4,1931.2,0.48481449]
[1741983224639,4.06955478,1931.4,1931.1,10.22837]
[1741983224848,0.05186664,1931.3,1931.1,10.22837]
[1741983225069,0.05186664,1931.3,1931.0,11.7957957]
[1741983225229,5.17795,1931.3,1931.0,1.5681557]
[1741983225554,0.05171513,1931.2,1930.9,11.04981]
[1741983225722,7.87856991,1931.2,1930.9,10.22875]
[1741983226255,7.12126991,1931.2,1931.0,5.17861]
[1741983226555,0.05171513,1931.2,1931.0,5.17861]
[1741983227342,0.05171513,1931.2,1931.0,5.17852]
[1741983227554,0.05171513,1931.2,1931.0,6.718734]
[1741983228244,0.05171513,1931.2,1931.1,0.8069]
[1741983228824,14.42505478,1931.4,1931.1,0.8069]
[1741983228825,9.24727478,1931.4,1931.1,0.8069]
[1741983229022,0.05113195,1931.2,1931.1,0.8069]
[1741983229220,9.24727478,1931.4,1931.1,0.8069]
[1741983229519,14.42507478,1931.4,1931.1,0.8069]
[1741983229731,0.05131966,1931.3,1931.1,0.8069]
[1741983230048,0.05131966,1931.3,1930.9,5.857]
[1741983230049,5.17812,1931.2,1930.9,5.857]
[1741983230547,0.05075455,1931.1,1930.7,0.812]
[1741983230745,5.17895,1930.9,1930.6,17.127]
[1741983230952,5.17885,1931.0,1930.6,27.34458]
[1741983231150,0.05011583,1930.8,1930.6,27.34458]
[1741983231351,5.17885,1931.0,1930.6,27.34458]
[1741983231554,0.04992801,1930.7,1930.6,27.34458]
[1741983231726,5.17885,1931.0,1930.6,35.857782]
[1741983231937,0.05035039,1930.9,1930.7,5.23123795]
[1741983232121,0.05035039,1930.9,1930.7,5.17945]
[1741983233522,0.05035039,1930.9,1930.6,36.24500626]
[1741983233947,0.05035039,1930.9,1930.6,35.857912]
[1741983234342,4.11990517,1930.9,1930.6,27.34462]
[1741983234524,0.05035039,1930.9,1930.6,22.30662]
[1741983234722,0.05035039,1930.9,1930.6,5.17955]
[1741983234923,0.05035039,1930.9,1930.7,5.1793]
[1741983235127,9.24797478,1931.1,1930.7,5.1793]
[1741983235453,0.05319804,1931.0,1930.8,0.7754]
[1741983235823,0.05319804,1931.0,1930.8,5.95454]
[1741983236224,6.213788,1931.2,1930.8,5.95454]
[1741983236423,0.04929641,1930.9,1930.8,5.95454]
[1741983236627,5.17819,1931.2,1930.8,7.067882]
[1741983236941,10.35701,1931.1,1930.7,5.17933]
[1741983237143,5.22878607,1931.1,1930.7,5.17933]
[1741983238118,5.22878607,1931.1,1930.7,5.17942]
[1741983239355,5.22878607,1931.1,1930.7,10.35869]
[1741983239557,0.05037607,1931.1,1930.7,10.35869]
[1741983240053,0.05037607,1931.1,1930.8,5.17917]
[1741983240262,0.8141,1931.0,1930.6,5.99258]
[1741983240552,0.04947319,1930.9,1930.7,5.23114803]
[1741983240940,5.70133061,1931.1,1930.7,5.17936]
[1741983241126,5.22849819,1931.0,1930.6,5.99273]
[1741983241326,6.32148107,1931.0,1930.6,5.99273]
[1741983241539,0.7574,1930.9,1930.5,5.57010647]
[1741983241732,0.04953863,1930.8,1930.6,5.17971]
[1741983241938,0.7574,1930.9,1930.6,5.17971]
[1741983242143,0.04945257,1930.8,1930.6,5.17971]
[1741983242458,0.7574,1930.9,1930.6,5.17971]
[1741983242655,0.04926474,1930.7,1930.6,5.17971]
[1741983242834,7.04626077,1930.9,1930.5,10.19699]
[1741983243034,0.04926474,1930.7,1930.5,10.19699]
[1741983243356,0.04929209,1930.6,1930.5,5.017]
[1741983243560,0.04929209,1930.6,1930.5,10.197]
[1741983243737,0.7574,1930.9,1930.5,10.197]
[1741983243938,0.04966776,1930.8,1930.6,5.1797]
[1741983244158,1.75796248,1930.9,1930.6,5.1797]
[1741983244454,0.04947993,1930.7,1930.6,5.1797]
[1741983244962,5.93637,1930.9,1930.5,10.197]
[1741983245157,0.04947993,1930.7,1930.5,10.197]
[1741983245465,5.93637,1930.9,1930.5,10.19689]
[1741983245646,0.04929209,1930.6,1930.5,10.19689]
[1741983245848,5.93649,1930.9,1930.5,10.19689]
[1741983246150,5.1792,1930.8,1930.5,5.011]
[1741983246335,0.8196,1930.6,1930.3,5.01]
[1741983246559,0.05683633,1930.5,1930.2,10.94914]
[1741983246738,0.05683633,1930.5,1930.2,10.19577]
[1741983246932,5.23683633,1930.5,1930.1,5.2973766]
[1741983247133,5.18029,1930.4,1930.1,0.1164066]
[1741983247350,0.04895004,1930.3,1930.1,0.1164066]
[1741983247549,6.57201404,1930.3,1930.1,0.1164066]
[1741983248332,13.06996478,1930.2,1930.1,6.6e-06]
[1741983248547,13.13200406,1930.2,1930.1,6.6e-06]
[1741983248759,13.06996478,1930.2,1930.1,6.6e-06]
[1741983248967,14.94730766,1930.2,1930.1,6.6e-06]
[1741983249559,14.99682902,1930.2,1930.1,6.6e-06]
[1741983250291,10.92727424,1930.2,1930.1,6.6e-06]
[1741983250491,14.99682902,1930.2,1930.1,6.6e-06]
[1741983250794,14.94730766,1930.2,1930.1,6.6e-06]
[1741983251283,7.88915478,1930.2,1930.1,6.6e-06]
[1741983251796,13.06996478,1930.2,1930.1,6.6e-06]
[1741983255796,7.88915478,1930.2,1930.1,6.6e-06]
[1741983255971,7.06955478,1930.2,1930.1,6.6e-06]
[1741983256659,12.25036478,1930.2,1930.1,6.6e-06]
[1741983257690,3.0,1930.2,1930.1,6.6e-06]
[1741983257852,4.84945478,1930.4,1930.1,5.1809166]
[1741983258054,4.06955478,1930.4,1930.1,5.1809166]
[1741983258262,7.06955478,1930.4,1930.1,5.1809166]
[1741983258963,12.24990478,1930.4,1930.1,6.6e-06]
[1741983260695,4.06955478,1930.4,1930.2,5.97691]
[1741983260854,6.1,1930.5,1930.3,5.18054]
[1741983261057,6.1,1930.5,1930.2,5.97689]
[1741983261595,6.1,1930.5,1930.3,5.18052]
[1741983261903,4.06955478,1930.4,1930.2,0.7962]
[1741983262196,4.06955478,1930.4,1930.3,1.06169594]
[1741983265910,10.17478526,1930.4,1930.1,6.6e-06]
[1741983266075,5.18056,1930.3,1930.1,6.6e-06]
[1741983266929,4.06955478,1930.2,1930.1,1.05977085]
[1741983267106,9.25036478,1930.2,1930.1,6.6e-06]
[1741983267406,4.06955478,1930.2,1930.1,6.6e-06]
[1741983270613,9.25036478,1930.2,1930.1,6.6e-06]
[1741983270920,10.77258726,1930.2,1930.1,6.6e-06]
[1741983271115,13.77258726,1930.2,1930.1,6.6e-06]
[1741983271323,14.56938726,1930.2,1930.1,6.6e-06]
[1741983271708,20.66938726,1930.2,1930.1,6.6e-06]
[1741983275506,0.8314,1929.5,1929.1,0.01]
[1741983275830,6.01409,1929.5,1929.1,5.24545059]
[1741983276121,6.01409,1929.5,1929.1,5.19362]
[1741983276524,10.3656,1929.5,1929.1,0.06183046]
[1741983276728,5.18269,1929.5,1929.3,1.04932949]
[1741983277185,5.18295,1929.4,1929.3,1.04932949]
[1741983277893,5.18269,1929.5,1929.3,1.04932949]
[1741983278111,12.25199478,1929.6,1929.3,1.04932949]
[1741983278329,8.18245,1929.6,1929.3,6.93263944]
[1741983278500,8.18245,1929.6,1929.3,1.74960944]
[1741983278701,8.18245,1929.6,1929.3,1.04932949]
[1741983279839,3.0,1929.6,1929.3,6.23245949]
[1741983280243,10.16955478,1929.8,1929.5,5.18268]
[1741983280397,5.18177,1929.9,1929.5,5.9467]
[1741983280598,8.18177,1929.9,1929.5,5.94673]
[1741983280802,8.18189,1929.8,1929.5,5.94673]
[1741983281403,18.76995078,1929.8,1929.4,5.1829]
[1741983281906,9.25207478,1929.6,1929.3,1.87492949]
[1741983282800,9.25207478,1929.6,1929.3,7.05805949]
[1741983283134,5.18252,1929.6,1929.3,1.87492949]
[1741983284302,10.36514,1929.6,1929.3,1.87492949]
[1741983284506,11.80860948,1929.6,1929.3,1.87492949]
[1741983285499,5.18271,1929.5,1929.3,1.87492949]
[1741983285821,6.62598948,1929.6,1929.3,1.87492949]
[1741983286020,11.80859948,1929.6,1929.3,1.87492949]
[1741983286433,5.18252,1929.6,1929.3,1.87492949]
[1741983286637,5.18252,1929.6,1929.3,7.05809949]
[1741983286829,3.0,1929.6,1929.3,7.05809949]
[1741983287032,3.0,1929.7,1929.4,5.18269]
[1741983287620,8.18224,1929.7,1929.3,7.05806949]
[1741983287834,8.18224,1929.7,1929.3,13.97662844]
[1741983288031,8.18224,1929.7,1929.3,8.79348844]
[1741983288425,8.18218,1929.7,1929.4,5.18291]
[1741983289137,6.8782,1930.0,1929.3,3.61036844]
[1741983289340,5.18218,1929.7,1929.3,7.05806949]
[1741983289551,5.18218,1929.7,1929.4,5.18295]
[1741983289708,8.182,1929.8,1929.4,5.18292]
[1741983289902,4.06955478,1929.7,1929.1,0.01]
[1741983290147,7.06955478,1929.8,1929.2,0.8331]
[1741983290444,7.06955478,1929.8,1929.5,5.18258]
[1741983290654,3.0,1929.8,1929.6,5.18217]
[1741983290946,3.0,1929.8,1929.5,6.01568]
[1741983291144,3.0,1929.8,1929.5,7.14614288]
[1741983292023,3.0,1929.8,1929.5,7.14610288]
[1741983292324,3.0,1929.8,1929.6,5.18232]
[1741983293621,3.0,1930.0,1929.7,5.18212]
[1741983293841,5.18127,1930.1,1929.7,5.23393727]
[1741983294011,5.18127,1930.1,1929.7,1.04162573]
[1741983294221,5.18135,1930.0,1929.6,5.18232]
[1741983294420,10.36256,1930.1,1929.7,5.18214]
[1741983294952,5.18135,1930.0,1929.7,5.18214]
[1741983295260,5.18135,1930.0,1929.8,0.8089]
[1741983295414,5.18127,1930.1,1929.8,0.8089]
[1741983295764,4.06955478,1930.2,1929.8,6.589759]
[1741983295962,9.25037478,1930.2,1929.8,6.589759]
[1741983296620,5.18082,1930.2,1929.8,6.589759]
[1741983296986,8.18082,1930.2,1929.8,1.407989]
[1741983297159,8.18082,1930.2,1929.8,6.503989]
[1741983297514,8.18082,1930.2,1929.8,11.685739]
[1741983298055,8.94851,1930.4,1930.0,5.1811]
[1741983298259,14.12897,1930.4,1929.9,5.18144]
[1741983298914,4.06955478,1930.3,1929.9,5.18144]
[1741983299668,9.25026478,1930.3,1929.9,5.18144]
[1741983299836,4.06955478,1930.3,1930.0,5.1813]
[1741983300160,10.35992,1930.6,1930.1,5.95822]
[1741983300161,12.24965478,1930.5,1930.1,5.95822]
[1741983300364,4.82393848,1930.5,1930.2,5.18069]
[1741983300665,5.98958,1930.6,1930.2,5.18069]
[1741983300882,10.05913478,1930.6,1930.2,5.18069]
[1741983301042,10.05913478,1930.6,1930.1,0.7772]
[1741983301043,4.06955478,1930.4,1930.1,5.95825]
[1741983302376,3.0,1930.5,1930.2,5.18077]
[1741983302529,4.30590948,1930.5,1930.2,5.18077]
[1741983302932,9.25022478,1930.3,1929.9,5.18147]
[1741983303179,5.18081,1930.2,1929.8,11.02942]
[1741983303474,5.18081,1930.2,1929.8,11.01942]
[1741983303633,5.18081,1930.2,1929.8,5.93342]
[1741983303832,6.62391348,1930.2,1929.8,5.93342]
[1741983305441,0.7873,1930.4,1930.1,5.18097]
[1741983305784,16.16292478,1930.8,1930.4,5.18007]
[1741983305984,4.88365478,1930.8,1930.4,5.18007]
[1741983306182,9.24883478,1930.8,1930.4,0.82]
[1741983306342,9.24883478,1930.8,1930.4,6.00006]
[1741983306539,9.24883478,1930.8,1930.4,5.904]
[1741983306540,3.0,1930.7,1930.4,5.904]
[1741983306752,4.88365478,1930.9,1930.4,7.01245]
[1741983306972,10.06258478,1930.9,1930.5,5.17992]
[1741983307286,10.06258478,1930.9,1930.4,12.19255]
[1741983307287,8.17929,1930.8,1930.4,12.19255]
[1741983307583,8.17929,1930.8,1930.4,17.37263]
[1741983307790,3.0,1930.8,1930.5,5.17974]
[1741983309001,3.0,1930.8,1930.5,10.35955]
[1741983309205,6.1,1931.1,1930.7,5.17936]
[1741983309206,16.16206478,1931.1,1930.7,5.17936]
[1741983309904,16.16155478,1931.3,1930.9,5.17886]
[1741983310106,10.06155478,1931.3,1930.9,5.17886]
[1741983310312,3.0,1931.2,1930.9,5.17886]
[1741983310674,8.17813,1931.2,1930.8,5.99915]
[1741983310895,5.17844,1931.1,1930.8,0.82]
[1741983311282,8.17816,1931.2,1930.8,5.99918]
[1741983312067,13.35642,1931.2,1930.8,5.99918]
[1741983312266,8.17816,1931.2,1930.8,5.99918]
[1741983312909,13.35648,1931.2,1930.8,5.99918]
[1741983313078,8.17816,1931.2,1930.8,5.99918]
[1741983313278,13.3565,1931.2,1930.8,5.99918]
[1741983313590,5.17893,1930.9,1930.6,0.8021]
[1741983313758,9.24848478,1930.9,1930.5,6.91702]
[1741983313959,5.17971,1930.7,1930.4,5.8861]
[1741983314163,5.18006,1930.5,1930.1,6.36441137]
[1741983314402,10.3603,1930.5,1930.1,11.44641137]
[1741983314575,5.18038,1930.4,1930.1,5.8841]
[1741983314782,9.24960478,1930.5,1930.1,11.06506]
[1741983316003,14.42979478,1930.5,1930.1,11.06506]
[1741983316365,5.18031,1930.4,1930.1,5.8841]
[1741983316565,9.24960478,1930.5,1930.1,11.06511]
[1741983316987,14.42979478,1930.5,1930.1,11.06511]
[1741983318001,9.24960478,1930.5,1930.1,11.06511]
[1741983318394,5.18043,1930.4,1930.1,5.8841]
[1741983319076,5.18065,1930.3,1930.1,5.8841]
[1741983319280,6.216758,1930.3,1930.0,5.069]
[1741983319610,4.06955478,1930.5,1929.9,0.7957]
[1741983319611,5.18104,1930.2,1929.9,0.7957]
[1741983320112,5.18104,1930.2,1929.9,5.97729]
[1741983320273,14.43083478,1930.3,1929.9,5.97729]
[1741983320674,5.18083,1930.2,1929.9,5.97729]
[1741983321002,9.24972478,1930.5,1930.1,5.18089]
[1741983321205,3.0,1930.4,1930.1,5.18089]
[1741983321805,3.0,1930.4,1930.2,0.8187]
[1741983322734,8.17974,1930.6,1930.2,5.99938]
[1741983322878,8.17974,1930.6,1930.2,11.06438]
[1741983323082,13.3597,1930.6,1930.2,11.06438]
[1741983323416,5.18001,1930.5,1930.2,5.8837]
[1741983324713,9.92271548,1930.6,1930.2,5.8837]
[1741983324889,9.92271548,1930.6,1930.2,11.06447]
[1741983324890,15.10270548,1930.6,1930.2,11.06447]
[1741983325281,9.92271548,1930.6,1930.2,11.06447]
[1741983325482,15.10266548,1930.6,1930.2,11.06447]
[1741983325812,5.18003,1930.5,1930.2,5.8837]
[1741983325976,15.10265548,1930.6,1930.2,5.8837]
[1741983326176,15.10265548,1930.6,1930.2,11.06449]
[1741983326909,5.18001,1930.5,1930.2,5.8837]
[1741983327113,9.92271548,1930.6,1930.2,5.8837]
[1741983327314,15.10263548,1930.6,1930.2,11.06441]
[1741983327491,5.18002,1930.5,1930.2,11.06441]
[1741983327692,5.18002,1930.5,1930.2,5.8837]
[1741983328009,5.18002,1930.5,1930.2,11.06449]
[1741983328386,5.18002,1930.5,1930.2,5.8837]
[1741983328881,15.10264548,1930.6,1930.2,11.06449]
[1741983329515,9.92271548,1930.6,1930.2,16.2451]
[1741983329812,9.92271548,1930.6,1930.2,5.99931]
[1741983331108,15.10263548,1930.6,1930.2,5.99931]
[1741983331313,9.92271548,1930.6,1930.2,11.18003]
[1741983331495,9.92271548,1930.6,1930.2,5.99931]
[1741983332798,9.92267548,1930.6,1930.3,5.18048]
[1741983333529,9.92267548,1930.6,1930.2,5.99931]
[1741983334199,6.8654,1930.8,1930.2,0.8187]
[1741983334416,6.27586381,1931.2,1930.2,0.8187]
[1741983334417,3.0,1930.9,1930.5,5.17985]
[1741983334625,5.17904,1930.9,1930.5,5.17985]
[1741983334831,10.35815,1930.9,1930.5,5.17985]